fUST/lending_fUST_20250506
["ID","MTS","AMOUNT","RATE_DAILY","PERIOD"]
[360090306,1746546643709,-401.02,0.00019178,2]
[360090308,1746546643719,-400.0,0.00019178,2]
[360090310,1746546643728,-939.42,0.00019178,2]
[360090312,1746546643738,-939.42,0.00019178,2]
[360090314,1746546643747,-400.0,0.00019178,2]
[360090316,1746546643757,-400.0,0.00019178,2]
[360090318,1746546643767,-939.42,0.00019178,2]
[360090320,1746546643776,-489.59,0.00019178,2]
[360090322,1746546643786,-939.42,0.00019178,2]
[360090324,1746546643796,-939.42,0.00019178,2]
[360090326,1746546643806,-939.42,0.00019178,2]
[360090328,1746546643815,-939.42,0.00019178,2]
[360090330,1746546643825,-939.42,0.00019178,2]
[360090332,1746546643834,-939.42,0.00019178,2]
[360090334,1746546643844,-939.42,0.00019178,2]
[360090336,1746546643854,-939.42,0.00019178,2]
[360090338,1746546643863,-939.42,0.00019178,2]
[360090341,1746546643872,-939.42,0.00019178,2]
[360090343,1746546643882,-939.42,0.00019178,2]
[360090345,1746546643891,-939.42,0.00019178,2]
[360090347,1746546643902,-939.42,0.00019178,2]
[360090349,1746546643911,-400.0,0.00019178,2]
[360090351,1746546643920,-939.42,0.00019178,2]
[360090353,1746546643930,-939.42,0.00019178,2]
[360090355,1746546643940,-939.42,0.00019178,2]
[360090357,1746546643949,-400.0,0.00019178,2]
[360090359,1746546643960,-939.42,0.00019178,2]
[360090360,1746546643969,-939.42,0.00019178,2]
[360090361,1746546643980,-939.42,0.00019178,2]
[360090362,1746546643990,-939.42,0.00019178,2]
[360090363,1746546643999,-939.64,0.00019178,2]
[360090364,1746546644008,-513.7459558,0.00019178,2]
[360090365,1746546644018,-847.24,0.00019178,2]
[360090366,1746546644027,-485.54,0.00019178,2]
[360090367,1746546644036,-400.0,0.00019178,2]
[360090368,1746546644045,-400.0,0.00019178,2]
[360090369,1746546644054,-403.14127598,0.00019178,2]
[360090370,1746546644064,-475.82,0.00019178,2]
[360090371,1746546644074,-400.0,0.00019178,2]
[360090373,1746546644083,-401.96524849,0.00019178,2]
[360090375,1746546644093,-400.0,0.00019178,2]
[360090377,1746546644103,-408.62378726,0.00019178,2]
[360090379,1746546644112,-400.0,0.00019178,2]
[360090381,1746546644121,-1248.1,0.00019178,2]
[360090383,1746546644134,-400.0,0.00019178,2]
[360090385,1746546644144,-400.0,0.00019178,2]
[360090387,1746546644153,-400.0,0.00019178,2]
[360090389,1746546644163,-404.59,0.00019178,2]
[360090391,1746546644173,-1288.17,0.00019178,2]
[360090393,1746546644182,-400.0,0.00019178,2]
[360090395,1746546644192,-400.0,0.00019178,2]
[360090397,1746546644202,-400.0,0.00019178,2]
[360090399,1746546644211,-400.0,0.00019178,2]
[360090401,1746546644222,-400.0,0.00019178,2]
[360090404,1746546644233,-400.0,0.00019178,2]
[360090406,1746546644242,-1015.98,0.00019178,2]
[360090408,1746546644252,-400.0,0.00019178,2]
[360090410,1746546644261,-798.41,0.00019178,2]
[360090412,1746546644271,-400.0,0.00019178,2]
[360090414,1746546644280,-400.0,0.00019178,2]
[360090416,1746546644290,-18055.85,0.00019178,2]
[360090418,1746546644300,-206.0059834,0.00019178,2]
[360090420,1746546644309,-2359.95,0.00019178,2]
[360090422,1746546644319,-400.0,0.00019178,2]
[360090424,1746546644328,-3471.34,0.00019178,2]
[360090426,1746546644339,-400.0,0.00019178,2]
[360090428,1746546644349,-1740.2,0.00019178,2]
[360090430,1746546644358,-400.0,0.00019178,2]
[360090432,1746546644367,-402.10659483,0.00019178,2]
[360090434,1746546644376,-765.41,0.00019178,2]
[360090436,1746546644387,-585.87,0.00019178,2]
[360090438,1746546644396,-2653.39,0.00019178,2]
[360090440,1746546644406,-822.18,0.00019178,2]
[360090442,1746546644417,-481.53152116,0.00019178,2]
[360090444,1746546644427,-406.79252526,0.00019178,2]
[360090446,1746546644436,-400.0,0.00019178,2]
[360090448,1746546644446,-3325.71,0.00019178,2]
[360090450,1746546644455,-400.0,0.00019178,2]
[360090452,1746546644465,-400.0,0.00019178,2]
[360090454,1746546644474,-1270.84,0.00019178,2]
[360090456,1746546644484,-400.0,0.00019178,2]
[360090458,1746546644494,-400.0,0.00019178,2]
[360090460,1746546644504,-556.65,0.00019178,2]
[360090462,1746546644513,-1385.71,0.00019178,2]
[360090464,1746546644523,-400.0,0.00019178,2]
[360090466,1746546644533,-400.0,0.00019178,2]
[360090468,1746546644543,-400.0,0.00019178,2]
[360090470,1746546644553,-501.60716646,0.00019178,2]
[360090472,1746546644563,-1052.82,0.00019178,2]
[360090474,1746546644573,-400.0,0.00019178,2]
[360090476,1746546644582,-538.47,0.00019178,2]
[360090478,1746546644593,-403.34010556,0.00019178,2]
[360090480,1746546644603,-502.8703402,0.00019178,2]
[360090482,1746546644612,-400.0,0.00019178,2]
[360090484,1746546644622,-400.0,0.00019178,2]
[360090486,1746546644631,-400.0,0.00019178,2]
[360090488,1746546644641,-400.0,0.00019178,2]
[360090490,1746546644651,-1165.33,0.00019178,2]
[360090492,1746546644661,-401.42416385,0.00019178,2]
[360090494,1746546644671,-2760.59,0.00019178,2]
[360090497,1746546644681,-400.0,0.00019178,2]
[360090499,1746546644691,-431.42,0.00019178,2]
[360090501,1746546644701,-7777.74,0.00019178,2]
[360090503,1746546644711,-400.0,0.00019178,2]
[360090505,1746546644721,-582.89,0.00019178,2]
[360090507,1746546644730,-400.0,0.00019178,2]
[360090509,1746546644741,-1550.82,0.00019178,2]
[360090511,1746546644751,-400.0,0.00019178,2]
[360090513,1746546644761,-400.0,0.00019178,2]
[360090515,1746546644771,-400.0,0.00019178,2]
[360090517,1746546644781,-403.83,0.00019178,2]
[360090519,1746546644791,-420.81417445,0.00019178,2]
[360090541,1746546644996,-5217.55,0.00019178,2]
[360090543,1746546645007,-400.0,0.00019178,2]
[360090545,1746546645017,-400.0,0.00019178,2]
[360090547,1746546645026,-400.0,0.00019178,2]
[360090549,1746546645036,-400.0,0.00019178,2]
[360090551,1746546645045,-500.0,0.00019178,2]
[360090553,1746546645054,-2446.75,0.00019178,2]
[360090555,1746546645064,-210.67578459,0.00019178,2]
[360090557,1746546645074,-400.0,0.00019178,2]
[360090559,1746546645084,-2057.74,0.00019178,2]
[360090562,1746546645094,-2534.82,0.00019178,2]
[360090564,1746546645104,-400.0,0.00019178,2]
[360090566,1746546645114,-400.0,0.00019178,2]
[360090568,1746546645123,-1625.12,0.00019178,2]
[360090570,1746546645133,-400.0,0.00019178,2]
[360090572,1746546645143,-514.92942498,0.00019178,2]
[360090574,1746546645153,-502.1374089,0.00019178,2]
[360090576,1746546645163,-403.34072284,0.00019178,2]
[360090578,1746546645173,-400.0,0.00019178,2]
[360090580,1746546645183,-400.0,0.00019178,2]
[360090582,1746546645193,-400.0,0.00019178,2]
[360090584,1746546645202,-153.94588979,0.00019178,2]
[360090586,1746546645212,-400.0,0.00019178,2]
[360090588,1746546645222,-640.24,0.00019178,2]
[360090590,1746546645231,-400.0,0.00019178,2]
[360090592,1746546645241,-502.34032409,0.00019178,2]
[360090594,1746546645251,-400.0,0.00019178,2]
[360090596,1746546645260,-400.0,0.00019178,2]
[360090598,1746546645270,-922.04,0.00019178,2]
[360090600,1746546645279,-432.39,0.00019178,2]
[360090602,1746546645289,-2012.99,0.00019178,2]
[360090604,1746546645299,-402.39565763,0.00019178,2]
[360090607,1746546645309,-400.0,0.00019178,2]
[360090609,1746546645319,-400.0,0.00019178,2]
[360090611,1746546645329,-400.0,0.00019178,2]
[360090614,1746546645343,-400.0,0.00019178,2]
[360090616,1746546645353,-2548.37,0.00019178,2]
[360090618,1746546645362,-400.0,0.00019178,2]
[360090620,1746546645374,-400.0,0.00019178,2]
[360090622,1746546645385,-402.94644609,0.00019178,2]
[360090624,1746546645395,-151.0,0.00019178,2]
[360090626,1746546645404,-478.425366,0.00019178,2]
[360090628,1746546645414,-500.0,0.00019178,2]
[360090630,1746546645423,-300.0,0.00019178,2]
[360090632,1746546645432,-173.96985209,0.00019233,2]
[360090634,1746546645442,-150.87121571,0.00019352,2]
[360090636,1746546645451,-399.84803315,0.00019364,2]
[360090638,1746546645461,-151.0,0.00019449,2]
[360090640,1746546645470,-262.959783,0.00019449,2]
[360090642,1746546645479,-262.959783,0.00019449,2]
[360090644,1746546645488,-151.715975,0.00019452,2]
[360090646,1746546645498,-262.959783,0.00019452,2]
[360090648,1746546645508,-262.959783,0.00019452,2]
[360090650,1746546645517,-151.0,0.00019452,2]
[360090652,1746546645527,-193.495035,0.00019452,2]
[360090654,1746546645536,-296.88359585,0.00019452,2]
[360090656,1746546645546,-507.8850277,0.00019452,2]
[360090658,1746546645556,-401.8274264,0.00019452,2]
[360090660,1746546645565,-400.0,0.00019452,2]
[360090662,1746546645575,-400.0,0.00019452,2]
[360090664,1746546645585,-401.39677314,0.00019452,2]
[360090666,1746546645594,-400.0,0.00019452,2]
[360090668,1746546645603,-400.0,0.00019452,2]
[360090670,1746546645613,-400.0,0.00019452,2]
[360090672,1746546645624,-400.0,0.00019452,2]
[360090674,1746546645634,-400.0,0.00019452,2]
[360090676,1746546645644,-400.0,0.00019452,2]
[360090678,1746546645653,-400.0,0.00019452,2]
[360090680,1746546645663,-400.0,0.00019452,2]
[360090682,1746546645672,-400.0,0.00019452,2]
[360090684,1746546645682,-506.64979063,0.00019452,2]
[360090686,1746546645691,-400.0,0.00019452,2]
[360090688,1746546645700,-500.0,0.00019452,2]
[360090690,1746546645709,-400.0,0.00019452,2]
[360090693,1746546645722,-507.88361149,0.00019452,2]
[360090695,1746546645732,-400.0,0.00019452,2]
[360090697,1746546645742,-400.0,0.00019452,2]
[360090699,1746546645751,-504.4020155,0.00019452,2]
[360090701,1746546645761,-289.22090928,0.00019452,2]
[360090703,1746546645772,-400.0,0.00019452,2]
[360090704,1746546645782,-307.06732803,0.00019452,2]
[360090706,1746546645792,-412.8869152,0.00019452,2]
[360090708,1746546645804,-315.14647706,0.00019452,2]
[360090709,1746546645813,-400.0,0.00019452,2]
[360090711,1746546645823,-320.64628423,0.00019452,2]
[360090713,1746546645833,-400.0,0.00019452,2]
[360090715,1746546645842,-400.0,0.00019452,2]
[360090717,1746546645852,-401.94674852,0.00019452,2]
[360090719,1746546645862,-502.42782163,0.00019452,2]
[360090720,1746546645872,-400.0,0.00019452,2]
[360090721,1746546645882,-405.18487035,0.00019452,2]
[360090723,1746546645891,-400.0,0.00019452,2]
[360090724,1746546645901,-400.0,0.00019452,2]
[360090725,1746546645911,-699.83,0.00019452,2]
[360090726,1746546645921,-531.10544261,0.00019452,2]
[360090727,1746546645932,-400.0,0.00019452,2]
[360090728,1746546645942,-400.0,0.00019452,2]
[360090729,1746546645952,-400.0,0.00019452,2]
[360090731,1746546645961,-400.0,0.00019452,2]
[360090733,1746546645971,-216.02230012,0.00019452,2]
[360090735,1746546645981,-400.0,0.00019452,2]
[360090736,1746546645990,-400.0,0.00019452,2]
[360090738,1746546646000,-400.0,0.00019452,2]
[360090740,1746546646010,-897.4,0.00019452,2]
[360090741,1746546646020,-828.88,0.00019452,2]
[360090742,1746546646030,-400.0,0.00019452,2]
[360090743,1746546646040,-400.0,0.00019452,2]
[360090745,1746546646050,-403.67899135,0.00019452,2]
[360090747,1746546646060,-400.0,0.00019452,2]
[360090748,1746546646070,-300.0,0.00019452,2]
[360090750,1746546646081,-400.0,0.00019452,2]
[360090751,1746546646090,-400.0,0.00019452,2]
[360090753,1746546646100,-400.0,0.00019452,2]
[360090755,1746546646110,-548.5576816,0.00019452,2]
[360090757,1746546646119,-400.0,0.00019452,2]
[360090758,1746546646129,-208.15339489,0.00019452,2]
[360090760,1746546646139,-400.0,0.00019452,2]
[360090762,1746546646149,-400.0,0.00019452,2]
[360090764,1746546646159,-400.0,0.00019452,2]
[360090765,1746546646169,-400.0,0.00019452,2]
[360090766,1746546646179,-1233.95,0.00019452,2]
[360090767,1746546646188,-400.0,0.00019452,2]
[360090768,1746546646197,-400.0,0.00019452,2]
[360090769,1746546646207,-400.0,0.00019452,2]
[360090770,1746546646217,-400.0,0.00019452,2]
[360090771,1746546646227,-400.0,0.00019452,2]
[360090772,1746546646236,-400.0,0.00019452,2]
[360090773,1746546646246,-400.0,0.00019452,2]
[360090774,1746546646256,-400.0,0.00019452,2]
[360090775,1746546646266,-400.0,0.00019452,2]
[360090776,1746546646276,-400.0,0.00019452,2]
[360090777,1746546646286,-400.0,0.00019452,2]
[360090778,1746546646296,-949.3,0.00019452,2]
[360090779,1746546646306,-400.0,0.00019452,2]
[360090780,1746546646315,-1428.99,0.00019452,2]
[360090781,1746546646325,-400.0,0.00019452,2]
[360090782,1746546646335,-400.0,0.00019452,2]
[360090783,1746546646348,-598.99,0.00019452,2]
[360090784,1746546646358,-534.54,0.00019452,2]
[360090785,1746546646367,-400.0,0.00019452,2]
[360090786,1746546646377,-400.0,0.00019452,2]
[360090787,1746546646389,-400.0,0.00019452,2]
[360090788,1746546646399,-400.0,0.00019452,2]
[360090789,1746546646409,-400.0,0.00019452,2]
[360090790,1746546646420,-400.0,0.00019452,2]
[360090791,1746546646429,-505.72161325,0.00019452,2]
[360090792,1746546646439,-195.35070066,0.00019452,2]
[360090793,1746546646448,-2938.9,0.00019452,2]
[360090794,1746546646457,-400.0,0.00019452,2]
[360090795,1746546646466,-583.38,0.00019452,2]
[360090796,1746546646476,-400.0,0.00019452,2]
[360090797,1746546646485,-400.0,0.00019452,2]
[360090798,1746546646495,-400.0,0.00019452,2]
[360090799,1746546646505,-400.0,0.00019452,2]
[360090800,1746546646515,-400.0,0.00019452,2]
[360090801,1746546646524,-407.80801258,0.00019452,2]
[360090802,1746546646533,-400.0,0.00019452,2]
[360090803,1746546646543,-400.0,0.00019452,2]
[360090804,1746546646552,-400.0,0.00019452,2]
[360090805,1746546646562,-400.0,0.00019452,2]
[360090806,1746546646572,-402.01282132,0.00019452,2]
[360090807,1746546646582,-400.0,0.00019452,2]
[360090808,1746546646592,-400.0,0.00019452,2]
[360090809,1746546646601,-502.75411108,0.00019452,2]
[360090810,1746546646611,-400.0,0.00019452,2]
[360090811,1746546646623,-440.42367638,0.00019452,2]
[360090812,1746546646634,-400.0,0.00019452,2]
[360090813,1746546646643,-400.0,0.00019452,2]
[360090814,1746546646653,-400.0,0.00019452,2]
[360090815,1746546646663,-400.0,0.00019452,2]
[360090816,1746546646673,-400.0,0.00019452,2]
[360090817,1746546646683,-400.0,0.00019452,2]
[360090818,1746546646693,-400.0,0.00019452,2]
[360090819,1746546646703,-433.28797714,0.00019452,2]
[360090820,1746546646713,-400.0,0.00019452,2]
[360090821,1746546646723,-400.0,0.00019452,2]
[360090822,1746546646734,-400.0,0.00019452,2]
[360090823,1746546646744,-1026.77,0.00019452,2]
[360090824,1746546646754,-400.0,0.00019452,2]
[360090825,1746546646764,-400.0,0.00019452,2]
[360090826,1746546646774,-424.92,0.00019452,2]
[360090827,1746546646783,-1659.89,0.00019452,2]
[360090828,1746546646793,-594.14,0.00019452,2]
[360090829,1746546646802,-400.0,0.00019452,2]
[360090830,1746546646812,-400.0,0.00019452,2]
[360090831,1746546646821,-400.0,0.00019452,2]
[360090832,1746546646831,-400.0,0.00019452,2]
[360090833,1746546646841,-400.0,0.00019452,2]
[360090834,1746546646851,-400.0,0.00019452,2]
[360090835,1746546646860,-400.0,0.00019452,2]
[360090836,1746546646871,-400.0,0.00019452,2]
[360090837,1746546646882,-852.0,0.00019452,2]
[360090838,1746546646892,-557.45,0.00019452,2]
[360090839,1746546646902,-400.0,0.00019452,2]
[360090840,1746546646911,-400.0,0.00019452,2]
[360090841,1746546646922,-400.0,0.00019452,2]
[360090842,1746546646932,-422.55,0.00019452,2]
[360090843,1746546646942,-400.0,0.00019452,2]
[360090844,1746546646952,-400.0,0.00019452,2]
[360090845,1746546646962,-400.0,0.00019452,2]
[360090846,1746546646972,-1308.2,0.00019452,2]
[360090847,1746546646982,-400.0,0.00019452,2]
[360090848,1746546646992,-400.0,0.00019452,2]
[360090849,1746546647002,-409.84377489,0.00019452,2]
[360090850,1746546647012,-1340.44,0.00019452,2]
[360090851,1746546647022,-400.0,0.00019452,2]
[360090852,1746546647032,-732.03,0.00019452,2]
[360090853,1746546647042,-400.0,0.00019452,2]
[360090854,1746546647053,-492.06,0.00019452,2]
[360090855,1746546647063,-400.0,0.00019452,2]
[360090856,1746546647073,-692.82,0.00019452,2]
[360090857,1746546647083,-400.0,0.00019452,2]
[360090858,1746546647093,-400.0,0.00019452,2]
[360090859,1746546647103,-406.57947226,0.00019452,2]
[360090860,1746546647112,-579.4,0.00019452,2]
[360090861,1746546647122,-436.88,0.00019452,2]
[360090862,1746546647132,-1293.72,0.00019452,2]
[360090863,1746546647142,-400.0,0.00019452,2]
[360090864,1746546647151,-400.0,0.00019452,2]
[360090865,1746546647161,-400.0,0.00019452,2]
[360090866,1746546647171,-240.93647369,0.00019452,2]
[360090867,1746546647181,-400.0,0.00019452,2]
[360090868,1746546647191,-358.0,0.00019452,2]
[360090869,1746546647201,-1818.45,0.00019452,2]
[360090870,1746546647211,-1000.0,0.00019452,2]
[360090871,1746546647220,-707.65,0.00019452,2]
[360090872,1746546647230,-1233.64,0.00019452,2]
[360090873,1746546647367,-500.0,0.00019452,2]
[360090874,1746546647377,-400.0,0.00019452,2]
[360090875,1746546647388,-400.0,0.00019452,2]
[360090876,1746546647397,-400.0,0.00019452,2]
[360090877,1746546647406,-492.77316531,0.00019452,2]
[360090878,1746546647416,-400.0,0.00019452,2]
[360090879,1746546647426,-400.0,0.00019452,2]
[360090880,1746546647436,-400.0,0.00019452,2]
[360090881,1746546647445,-400.0,0.00019452,2]
[360090882,1746546647454,-400.0,0.00019452,2]
[360090883,1746546647463,-5489.49,0.00019452,2]
[360090884,1746546647472,-400.0,0.00019452,2]
[360090885,1746546647481,-400.0,0.00019452,2]
[360090886,1746546647491,-400.0,0.00019452,2]
[360090887,1746546647500,-400.0,0.00019452,2]
[360090888,1746546647509,-400.0,0.00019452,2]
[360090889,1746546647518,-400.0,0.00019452,2]
[360090890,1746546647528,-3222.06,0.00019452,2]
[360090891,1746546647537,-400.0,0.00019452,2]
[360090892,1746546647546,-400.0,0.00019452,2]
[360090893,1746546647555,-400.0,0.00019452,2]
[360090894,1746546647565,-998.58,0.00019452,2]
[360090895,1746546647575,-400.0,0.00019452,2]
[360090896,1746546647585,-405.29903765,0.00019452,2]
[360090897,1746546647595,-400.0,0.00019452,2]
[360090898,1746546647604,-400.0,0.00019452,2]
[360090899,1746546647614,-444.07,0.00019452,2]
[360090900,1746546647623,-1572.69,0.00019452,2]
[360090901,1746546647633,-400.0,0.00019452,2]
[360090902,1746546647642,-791.49,0.00019452,2]
[360090903,1746546647651,-400.0,0.00019452,2]
[360090904,1746546647661,-872.91,0.00019452,2]
[360090905,1746546647670,-531.44,0.00019452,2]
[360090906,1746546647680,-400.0,0.00019452,2]
[360090907,1746546647689,-400.0,0.00019452,2]
[360090908,1746546647699,-1516.71,0.00019452,2]
[360090909,1746546647709,-400.0,0.00019452,2]
[360090910,1746546647718,-400.0,0.00019452,2]
[360090911,1746546647728,-400.0,0.00019452,2]
[360090912,1746546647738,-400.0,0.00019452,2]
[360090913,1746546647748,-400.0,0.00019452,2]
[360090914,1746546647757,-1454.56,0.00019452,2]
[360090915,1746546647767,-400.0,0.00019452,2]
[360090916,1746546647777,-656.9,0.00019452,2]
[360090917,1746546647786,-400.0,0.00019452,2]
[360090918,1746546647795,-400.0,0.00019452,2]
[360090919,1746546647804,-400.0,0.00019452,2]
[360090920,1746546647814,-400.0,0.00019452,2]
[360090921,1746546647824,-1168.34,0.00019452,2]
[360090922,1746546647834,-400.0,0.00019452,2]
[360090923,1746546647844,-400.0,0.00019452,2]
[360090924,1746546647854,-400.0,0.00019452,2]
[360090925,1746546647863,-400.0,0.00019452,2]
[360090926,1746546647873,-519.67023278,0.00019452,2]
[360090927,1746546647882,-400.0,0.00019452,2]
[360090928,1746546647892,-400.0,0.00019452,2]
[360090929,1746546647902,-957.71,0.00019452,2]
[360090930,1746546647911,-174.33508662,0.00019452,2]
[360090931,1746546647922,-472.19,0.00019452,2]
[360090932,1746546647931,-400.0,0.00019452,2]
[360090933,1746546647940,-400.0,0.00019452,2]
[360090934,1746546647950,-400.0,0.00019452,2]
[360090935,1746546647960,-1157.12,0.00019452,2]
[360090936,1746546647970,-484.1,0.00019452,2]
[360090937,1746546647980,-400.0,0.00019452,2]
[360090938,1746546647989,-384.36037893,0.00019452,2]
[360090939,1746546647998,-400.0,0.00019452,2]
[360090940,1746546648008,-3912.37,0.00019452,2]
[360090941,1746546648017,-400.0,0.00019452,2]
[360090942,1746546648027,-408.57,0.00019452,2]
[360090943,1746546648036,-763.38,0.00019452,2]
[360090944,1746546648046,-400.0,0.00019452,2]
[360090945,1746546648056,-517.23,0.00019452,2]
[360090946,1746546648066,-400.0,0.00019452,2]
[360090947,1746546648075,-687.94,0.00019452,2]
[360090948,1746546648084,-457.24,0.00019452,2]
[360090949,1746546648094,-555.49,0.00019452,2]
[360090950,1746546648104,-400.0,0.00019452,2]
[360090951,1746546648113,-477.11,0.00019452,2]
[360090952,1746546648122,-663.81,0.00019452,2]
[360090953,1746546648131,-400.0,0.00019452,2]
[360090954,1746546648141,-400.0,0.00019452,2]
[360090955,1746546648150,-455.74613091,0.00019452,2]
[360090956,1746546648159,-1068.36,0.00019452,2]
[360090957,1746546648168,-408.41553255,0.00019452,2]
[360090958,1746546648177,-476.22725937,0.00019452,2]
[360090959,1746546648186,-400.0,0.00019452,2]
[360090960,1746546648195,-591.3312437,0.00019452,2]
[360090961,1746546648205,-503.20484552,0.00019452,2]
[360090962,1746546648214,-1013.92686173,0.00019452,2]
[360090963,1746546648223,-400.0,0.00019452,2]
[360090964,1746546648232,-667.74,0.00019452,2]
[360090965,1746546648242,-400.0,0.00019452,2]
[360090966,1746546648251,-400.0,0.00019452,2]
[360090967,1746546648260,-407.28009437,0.00019452,2]
[360090968,1746546648270,-400.0,0.00019452,2]
[360090969,1746546648279,-400.0,0.00019452,2]
[360090970,1746546648289,-507.98636629,0.00019452,2]
[360090971,1746546648298,-510.6,0.00019452,2]
[360090972,1746546648307,-2908.84,0.00019452,2]
[360090973,1746546648317,-400.0,0.00019452,2]
[360090974,1746546648326,-400.0,0.00019452,2]
[360090975,1746546648338,-851.27,0.00019452,2]
[360090976,1746546648350,-400.0,0.00019452,2]
[360090977,1746546648359,-400.0,0.00019452,2]
[360090978,1746546648368,-549.8,0.00019452,2]
[360090979,1746546648377,-1024.3,0.00019452,2]
[360090980,1746546648387,-2516.44,0.00019452,2]
[360090981,1746546648397,-400.0,0.00019452,2]
[360090982,1746546648407,-400.0,0.00019452,2]
[360090983,1746546648417,-400.0,0.00019452,2]
[360090984,1746546648427,-400.0,0.00019452,2]
[360090985,1746546648438,-400.0,0.00019452,2]
[360090986,1746546648448,-400.0,0.00019452,2]
[360090987,1746546648458,-400.0,0.00019452,2]
[360090988,1746546648467,-413.95268273,0.00019452,2]
[360090989,1746546648477,-400.0,0.00019452,2]
[360090990,1746546648487,-400.0,0.00019452,2]
[360090991,1746546648496,-2285.17,0.00019452,2]
[360090992,1746546648506,-400.0,0.00019452,2]
[360090993,1746546648515,-710.13,0.00019452,2]
[360090994,1746546648525,-400.0,0.00019452,2]
[360090995,1746546648534,-1852.28,0.00019452,2]
[360090996,1746546648543,-400.0,0.00019452,2]
[360090997,1746546648552,-400.0,0.00019452,2]
[360090998,1746546648561,-400.0,0.00019452,2]
[360090999,1746546648570,-400.0,0.00019452,2]
[360091000,1746546648579,-1820.87,0.00019452,2]
[360091001,1746546648587,-1212.61,0.00019452,2]
[360091002,1746546648597,-654.94,0.00019452,2]
[360091003,1746546648606,-400.0,0.00019452,2]
[360091004,1746546648615,-400.0,0.00019452,2]
[360091005,1746546648623,-1542.68,0.00019452,2]
[360091006,1746546648632,-400.0,0.00019452,2]
[360091007,1746546648642,-2200.11,0.00019452,2]
[360091008,1746546648651,-231.50128477,0.00019452,2]
[360091009,1746546648660,-2266.82,0.00019452,2]
[360091010,1746546648669,-400.0,0.00019452,2]
[360091011,1746546648678,-651.21,0.00019452,2]
[360091012,1746546648687,-400.0,0.00019452,2]
[360091013,1746546648696,-537.8,0.00019452,2]
[360091014,1746546648705,-7159.93,0.00019452,2]
[360091015,1746546648714,-400.0,0.00019452,2]
[360091016,1746546648723,-400.0,0.00019452,2]
[360091017,1746546648732,-400.0,0.00019452,2]
[360091018,1746546648741,-1657.17,0.00019452,2]
[360091019,1746546648750,-400.0,0.00019452,2]
[360091020,1746546648759,-400.0,0.00019452,2]
[360091021,1746546648768,-212.38482836,0.00019452,2]
[360091022,1746546648778,-712.79,0.00019452,2]
[360091023,1746546648788,-405.48514162,0.00019452,2]
[360091024,1746546648797,-448.05,0.00019452,2]
[360091025,1746546648808,-400.0,0.00019452,2]
[360091026,1746546648819,-400.0,0.00019452,2]
[360091027,1746546648828,-1861.37,0.00019452,2]
[360091028,1746546648837,-400.0,0.00019452,2]
[360091029,1746546648847,-400.0,0.00019452,2]
[360091030,1746546648856,-592.37,0.00019452,2]
[360091031,1746546648866,-400.0,0.00019452,2]
[360091032,1746546648875,-400.0,0.00019452,2]
[360091033,1746546648885,-400.0,0.00019452,2]